[Event "World Junior U20 Girls 2018"]
[Site "Gebze"]
[Date "2018.09.14"]
[Round "10"]
[White "Tsolakidou, Stavroula"]
[Black "Unuk, Laura"]
[Result "1-0"]
[ECO "C89"]
[WhiteElo "2393"]
[BlackElo "2299"]
[Annotator "NA"]
[PlyCount "89"]
[EventDate "2018.09.05"]
[EventType "swiss"]
[EventCountry "TUR"]
[SourceTitle "playchess.com"]
[Source "ChessBase"]
[SourceQuality "1"]
[TimeControl "40/5400+30:1800+30"]

1. e4 {[%emt 0:00:30]} e5 {[%emt 0:00:30]} 2. Nf3 {[%emt 0:00:30]} Nc6 {[%emt 0:00:00]} 3. Bb5 {[%emt 0:00:00]} a6 {[%emt 0:00:00]} 4. Ba4 {[%emt 0:00:00]} Nf6 {[%emt 0:00:30]} 5. d3 {[%emt 0:00:30]} b5 {[%emt 0:01:30]} 6. Bb3 {[%emt 0:00:00]} Be7 {[%emt 0:05:30]} 7. O-O {[%emt 0:02:00]} Bb7 {[%emt 0:00:30]} 8. c3 {[%emt 0:07:30]} O-O {[%emt 0:06:30]} 9. Re1 {[%emt 0:05:30]} d5 {[%emt 0:05:30]} 10. Nbd2 {[%emt 0:11:30] LiveBook: 6 Games} dxe4 {[%emt 0:23:30]} 11. dxe4 {[%emt 0:16:30]} h6 {[%emt 0:01:30] C89: Closed Ruy Lopez: Marshall Attack} (11... Bc5 12. h3 Nh5 13. Bd5 Qf6 14. a4 Nf4 15. Nb3 Bb6 16. Bxf4 Qxf4 17. Qe2 bxa4 18. Rxa4 Rfd8 19. Rc4 {1-0 (31) Morozevich,A (2743)-Bacrot,E (2712) Biel 2004 CBM 102 [Ftacnik,L]}) 12. Qe2 {[%emt 0:03:30]} Re8 {[%emt 0:02:30]} 13. a4 $146 {[%emt 0:05:30]} ({Predecessor:} 13. Nf1 Na5 14. Bc2 c5 15. h3 Qc7 16. g4 Nh7 17. Ng3 Ng5 18. Nxg5 Bxg5 19. Nf5 {0-1 (60) Campelo,L (2247)-Marrero Lopez,Y (2304) Santos 2012}) 13... Bc5 {[%emt 0:09:30]} 14. Bc2 {[%emt 0:08:30]} b4 {[%emt 0:13:30]} 15. a5 {[%emt 0:02:30]} Qe7 {[%emt 0:02:30]} 16. Ba4 {[%emt 0:07:30]} Ng4 {[%emt 0:05:06]} 17. Rf1 {[%emt 0:00:30]} Reb8 {[%emt 0:00:05]} 18. Nc4 {[%emt 0:04:30]} Nd8 {[%emt 0:00:19]} 19. h3 {[%emt 0:02:30]} Nf6 {[%emt 0:00:30]} 20. Bc2 {[%emt 0:00:30]} b3 {[%emt 0:09:10]} 21. Bxb3 {[%emt 0:02:39]} Bxe4 {[%emt 0:00:56]} 22. Ba2 {[%emt 0:01:05]} Nc6 {[%emt 0:02:56]} 23. Be3 {[%emt 0:05:58]} Bxf3 {[%emt 0:03:41]} 24. Qxf3 {[%emt 0:00:04]} e4 {[%emt 0:00:00]} 25. Qg3 {[%emt 0:07:51]} Bxe3 {[%emt 0:00:00]} 26. Nxe3 {[%emt 0:00:55]} Rb5 {[%emt 0:01:16]} 27. b4 {[%emt 0:01:29]} Rg5 {[%emt 0:02:07]} 28. Qh2 {[%emt 0:00:22]} Ne5 {[%emt 0:01:30]} 29. Kh1 {[%emt 0:00:05]} Rd8 {[%emt 0:00:29]} 30. Rad1 {[%emt 0:02:31]} c6 {[%emt 0:01:10]} 31. Rxd8+ {[%emt 0:00:52]} Qxd8 {[%emt 0:00:30]} 32. Rd1 {[%emt 0:00:00]} Qe7 {[%emt 0:00:06]} 33. Bb1 {[%emt 0:01:53]} g6 {[%emt 0:01:45]} 34. Qf4 {[%emt 0:00:18]} Nd3 {[%emt 0:01:13]} 35. Bxd3 {[%emt 0:00:52]} exd3 {[%emt 0:00:03]} 36. Rxd3 {[%emt 0:00:09]} c5 {[%emt 0:00:54]} 37. b5 {[%emt 0:00:50]} c4 {[%emt 0:00:09]} 38. Rd6 {[%emt 0:00:32]} Ne4 {[%emt 0:01:00]} 39. Rxa6 {[%emt 0:00:55]} Rxb5 {[%emt 0:00:30]} 40. Ra8+ {[%emt 0:00:30]} Kg7 {[%emt 0:00:00]} 41. a6 {[%emt 0:04:40]} Rb1+ $2 {[%emt 0:16:12]} (41... g5 $16 42. Qf5 Rb2) 42. Kh2 {[%emt 0:00:30]} Nxf2 {[%emt 0:00:00]} 43. Qd4+ {[%emt 0:15:00]} Qf6 $18 {[%emt 0:05:03]} 44. a7 {[%emt 0:05:25]} Qxd4 {[%emt 0:07:15]} 45. Rg8+ {[%emt 0:00:14]} 1-0

[Event "World Junior U20 Girls 2018"]
[Site "Gebze"]
[Date "2018.09.14"]
[Round "10"]
[White "Zhu, Jiner"]
[Black "Kanakova, Natalie"]
[Result "1-0"]
[ECO "C42"]
[WhiteElo "2364"]
[BlackElo "2201"]
[Annotator "ChessBase"]
[PlyCount "153"]
[EventDate "2018.09.05"]
[EventType "swiss"]
[EventCountry "TUR"]
[SourceTitle "playchess.com"]
[Source "ChessBase"]
[SourceQuality "1"]
[TimeControl "40/5400+30:1800+30"]

1. e4 {[%emt 0:00:30]} e5 {[%emt 0:00:30]} 2. Nf3 {[%emt 0:00:00]} Nf6 {[%emt 0:00:30]} 3. Nxe5 {[%emt 0:00:00]} d6 {[%emt 0:00:00]} 4. Nf3 {[%emt 0:00:30]} Nxe4 {[%emt 0:00:00]} 5. d4 {[%emt 0:00:00]} d5 {[%emt 0:00:00]} 6. Bd3 {[%emt 0:00:00]} Be7 {[%emt 0:00:00]} 7. O-O {[%emt 0:00:00]} Bf5 {[%emt 0:00:30]} 8. Re1 {[%emt 0:00:00]} O-O {[%emt 0:00:30]} 9. c4 {[%emt 0:00:30]} Nc6 {[%emt 0:00:30]} 10. Nc3 {[%emt 0:03:30]} Nxc3 {[%emt 0:03:30]} 11. bxc3 {[%emt 0:00:30]} Bxd3 {[%emt 0:04:30]} 12. Qxd3 {[%emt 0:00:00]} dxc4 {[%emt 0:06:30]} 13. Qxc4 {[%emt 0:00:00]} Bd6 {[%emt 0:02:30]} 14. Qb5 {[%emt 0:07:30]} Rb8 {[%emt 0:01:30]} 15. Bb2 {[%emt 0:00:30]} a6 {[%emt 0:02:30]} 16. Qf5 {[%emt 0:00:30]} Ne7 {[%emt 0:05:30]} 17. Qh3 {[%emt 0:06:30]} Ng6 {[%emt 0:05:30]} 18. c4 {[%emt 0:00:30]} Qf6 {[%emt 0:07:30]} 19. Nd2 {[%emt 0:04:30]} Bb4 {[%emt 0:08:30]} 20. Qe3 {[%emt 0:13:30]} Qf4 {[%emt 0:05:30]} 21. Rad1 {[%emt 0:01:30]} b5 {[%emt 0:04:30]} 22. c5 {[%emt 0:02:30]} c6 {[%emt 0:00:30]} 23. Re2 {[%emt 0:01:30]} Bxd2 {[%emt 0:01:30]} 24. Rdxd2 {[%emt 0:01:30]} Rbd8 {[%emt 0:03:30]} 25. g3 {[%emt 0:03:30]} Qg4 {[%emt 0:06:30]} 26. f3 {[%emt 0:10:30]} Qd7 {[%emt 0:02:30]} 27. d5 {[%emt 0:05:30]} cxd5 {[%emt 0:00:30]} 28. Qc3 {[%emt 0:00:00]} d4 {[%emt 0:06:30]} 29. Qxd4 {[%emt 0:01:00]} Qxd4+ {[%emt 0:00:30]} 30. Bxd4 {[%emt 0:00:30]} Rc8 {[%emt 0:00:00]} 31. Bf2 {[%emt 0:00:00]} Rc6 {[%emt 0:01:00]} 32. Rd7 {[%emt 0:02:00]} f6 {[%emt 0:01:30]} 33. Rb7 {[%emt 0:02:30]} Rfc8 {[%emt 0:03:04]} 34. f4 {[%emt 0:00:30]} Kf8 {[%emt 0:05:27]} 35. Rd2 {[%emt 0:02:30]} R8c7 {[%emt 0:02:11]} 36. Rxc7 {[%emt 0:03:30]} Rxc7 {[%emt 0:00:30]} 37. Rd6 {[%emt 0:00:00]} a5 {[%emt 0:01:24]} 38. Ra6 {[%emt 0:04:00]} Ne7 {[%emt 0:00:44]} 39. Rxa5 {[%emt 0:00:30]} b4 {[%emt 0:00:07]} 40. Kg2 {[%emt 0:00:00]} Nc6 {[%emt 0:00:00]} 41. Ra8+ {[%emt 0:18:00]} Kf7 {[%emt 0:04:03]} 42. Kf3 {[%emt 0:02:30]} Re7 {[%emt 0:15:30]} 43. Ra6 {[%emt 0:02:30]} Re6 {[%emt 0:01:30]} 44. Kg2 {[%emt 0:03:30]} f5 {[%emt 0:00:30]} 45. Rb6 {[%emt 0:00:00]} Ke8 {[%emt 0:00:30]} 46. Kf1 {[%emt 0:00:00]} Kd8 {[%emt 0:02:30]} 47. Be1 {[%emt 0:00:30]} Kc7 {[%emt 0:00:30]} 48. Bxb4 {[%emt 0:00:30]} Re4 {[%emt 0:00:30]} 49. Be1 {[%emt 0:03:30]} Rc4 {[%emt 0:02:15]} 50. Bf2 {[%emt 0:00:30]} Rc1+ {[%emt 0:00:30]} 51. Kg2 {[%emt 0:00:30]} Rc2 {[%emt 0:00:10]} 52. a3 {[%emt 0:02:30]} Ra2 {[%emt 0:00:53]} 53. Rb3 {[%emt 0:01:30]} Nd4 {[%emt 0:00:42]} 54. Re3 {[%emt 0:00:30]} Nc6 {[%emt 0:04:47]} 55. h3 {[%emt 0:01:30]} h5 {[%emt 0:01:28]} 56. Rd3 {[%emt 0:04:30]} Ne7 {[%emt 0:00:55]} 57. Kf3 {[%emt 0:00:30]} Kc6 {[%emt 0:00:30]} 58. Rd6+ {[%emt 0:00:30]} Kc7 {[%emt 0:00:07]} 59. Rd3 {[%emt 0:02:30]} Kc6 {[%emt 0:00:21]} 60. Re3 {[%emt 0:00:30]} Nd5 {[%emt 0:01:09]} 61. Re6+ {[%emt 0:01:30]} Kb5 {[%emt 0:03:50]} 62. Re5 {[%emt 0:00:30]} Rxa3+ {[%emt 0:00:32]} 63. Kg2 {[%emt 0:00:00]} Nf6 {[%emt 0:00:45]} 64. Rxf5 {[%emt 0:00:00]} Ne4 {[%emt 0:01:07]} 65. Re5 {[%emt 0:00:30]} Nf6 {[%emt 0:00:50]} 66. Re6 {[%emt 0:01:31]} Ra2 {[%emt 0:01:38]} 67. Kf3 {[%emt 0:02:05]} Ra3+ {[%emt 0:00:22]} 68. Re3 {[%emt 0:00:06]} Ra2 {[%emt 0:00:42]} 69. Re5 {[%emt 0:02:37]} Kc6 {[%emt 0:00:24]} 70. Bd4 {[%emt 0:00:38]} Ra8 {[%emt 0:03:11]} 71. Re6+ {[%emt 0:01:09]} Kd5 {[%emt 0:00:54]} 72. Rd6+ {[%emt 0:00:30]} Kc4 {[%emt 0:00:00]} 73. Bxf6 {[%emt 0:00:06]} gxf6 {[%emt 0:00:16]} 74. Rxf6 {[%emt 0:00:00]} Ra3+ {[%emt 0:00:00]} 75. Ke4 {[%emt 0:00:00]} Kxc5 {[%emt 0:00:16]} 76. g4 {[%emt 0:01:59]} Rxh3 {[%emt 0:00:28]} 77. Rf5+ {[%emt 0:00:30]} 1-0

[Event "World Junior U20 Girls 2018"]
[Site "Gebze"]
[Date "2018.09.14"]
[Round "10"]
[White "Dordzhieva, Dinara"]
[Black "Assaubayeva, Bibisara"]
[Result "1/2-1/2"]
[ECO "E62"]
[WhiteElo "2318"]
[BlackElo "2371"]
[Annotator "NA"]
[PlyCount "76"]
[EventDate "2018.09.05"]
[EventType "swiss"]
[EventCountry "TUR"]
[SourceTitle "playchess.com"]
[Source "ChessBase"]
[SourceQuality "1"]
[TimeControl "40/5400+30:1800+30"]

1. d4 {[%emt 0:00:30]} Nf6 {[%emt 0:00:30]} 2. Nf3 {[%emt 0:00:00]} g6 {[%emt 0:00:30]} 3. g3 {[%emt 0:00:00]} Bg7 {[%emt 0:00:00]} 4. Bg2 {[%emt 0:00:00]} O-O {[%emt 0:00:00]} 5. O-O {[%emt 0:00:00]} d6 {[%emt 0:00:30]} 6. c4 {[%emt 0:00:30]} Nc6 {[%emt 0:00:30]} 7. Nc3 {[%emt 0:00:00]} Bg4 {[%emt 0:00:00]} 8. h3 {[%emt 0:03:00]} Bxf3 {[%emt 0:00:00]} 9. Bxf3 {[%emt 0:00:00]} Nd7 {[%emt 0:00:30]} 10. e3 {[%emt 0:01:00]} e5 {[%emt 0:00:30]} 11. d5 {[%emt 0:03:30] E62: King's Indian: Fianchetto: 6...c6 and Panno Variation (6...Nc6) without ...a6} Ncb8 {[%emt 0:05:30]} (11... Ne7 12. Bg2 f5 13. b3 e4 14. Bb2 g5 15. f3 exf3 16. Qxf3 Ng6 17. Qe2 f4 18. exf4 gxf4 19. Ne4 Bxb2 20. Qxb2 Nde5 21. gxf4 Nxf4 {0-1 (36) Hou,Y (2658)-Nakamura,H (2777) chess.com INT 2018}) 12. Bg2 $146 {[%emt 0:03:30]} ({Predecessor:} 12. e4 f5 13. Bd2 a5 14. Na4 Na6 15. Qc2 Nac5 16. Nxc5 Nxc5 17. Kg2 b6 18. b3 Rf7 {0-1 (37) Orgovan,S (2290)-Szalanczy,E (2360) Balatonbereny 1986}) 12... a5 {[%emt 0:00:30]} 13. Rb1 {[%emt 0:02:30]} Nc5 {[%emt 0:03:30]} 14. b3 {[%emt 0:07:30]} f5 {[%emt 0:04:30]} 15. a3 {[%emt 0:02:30]} e4 {[%emt 0:07:30]} 16. Bd2 {[%emt 0:00:30]} Nbd7 {[%emt 0:02:30]} 17. Ne2 {[%emt 0:02:30]} Ne5 {[%emt 0:07:30]} 18. Nd4 {[%emt 0:04:30]} Re8 {[%emt 0:03:30]} 19. b4 {[%emt 0:05:30]} axb4 {[%emt 0:03:30]} 20. axb4 {[%emt 0:00:30]} Ncd3 {[%emt 0:01:30]} 21. Qb3 {[%emt 0:02:30]} Qd7 {[%emt 0:02:30]} 22. Ne6 $11 {[%emt 0:17:30]} Rxe6 {[%emt 0:11:30]} 23. dxe6 {[%emt 0:00:30]} Qxe6 {[%emt 0:00:00]} 24. Bc3 {[%emt 0:10:30]} Qxc4 {[%emt 0:23:00]} 25. Qxc4+ {[%emt 0:00:00]} Nxc4 {[%emt 0:00:30]} 26. Bxg7 {[%emt 0:00:00]} Kxg7 {[%emt 0:00:30]} 27. Ra1 {[%emt 0:00:30]} Rxa1 {[%emt 0:00:30]} 28. Rxa1 {[%emt 0:00:30]} Nxb4 {[%emt 0:00:30]} 29. Ra7 {[%emt 0:00:30]} Kf6 {[%emt 0:00:30]} 30. Rxb7 {[%emt 0:00:30]} c5 {[%emt 0:00:30]} 31. Bf1 {[%emt 0:05:30]} Nd2 {[%emt 0:03:11]} 32. Bb5 {[%emt 0:00:30]} d5 {[%emt 0:08:54]} 33. Rxh7 {[%emt 0:05:30]} c4 {[%emt 0:05:07]} 34. Rc7 {[%emt 0:04:30]} Nd3 {[%emt 0:02:09]} 35. Rc6+ {[%emt 0:04:11]} Kf7 {[%emt 0:01:31]} 36. Rc7+ {[%emt 0:00:41]} Kf6 {[%emt 0:00:22]} 37. Rc6+ {[%emt 0:00:11]} Kf7 {[%emt 0:02:02]} 38. Rc7+ {[%emt 0:00:09]} Kf6 {[%emt 0:00:23]} 1/2-1/2

[Event "World Junior U20 Girls 2018"]
[Site "Gebze"]
[Date "2018.09.14"]
[Round "10"]
[White "Potapova, Margarita"]
[Black "Tokhirjonova, Gulrukhbegim"]
[Result "0-1"]
[ECO "C01"]
[WhiteElo "2277"]
[BlackElo "2369"]
[Annotator "NA"]
[PlyCount "80"]
[EventDate "2018.09.05"]
[EventType "swiss"]
[EventCountry "TUR"]
[SourceTitle "playchess.com"]
[Source "ChessBase"]
[SourceQuality "1"]
[TimeControl "40/5400+30:1800+30"]

1. d4 {[%emt 0:00:30]} e6 {[%emt 0:01:30]} 2. c4 {[%emt 0:00:30]} b6 {[%emt 0:00:30]} 3. e4 {[%emt 0:04:30]} Bb4+ {[%emt 0:02:30] C01: French: Exchange Variation} 4. Bd2 {[%emt 0:01:30]} Bxd2+ {[%emt 0:01:30]} 5. Qxd2 {[%emt 0:00:30]} d5 {[%emt 0:04:30]} 6. cxd5 {[%emt 0:02:30]} (6. Bd3 Nc6 7. Ne2 dxe4 8. Bxe4 Bb7 9. Nbc3 Nf6 10. Bf3 O-O 11. O-O {½-½ (52) Gelfand,B (2719)-Rapport,R (2692) Palma de Mallorca 2017}) 6... exd5 {[%emt 0:02:30]} 7. e5 {[%emt 0:00:30]} Ne7 {[%emt 0:01:30] LiveBook: 3 Games} 8. Nf3 {[%emt 0:06:30]} O-O {[%emt 0:03:30]} 9. Bd3 $146 {[%emt 0:00:30]} ({Predecessor:} 9. Be2 c5 10. Nc3 Be6 11. O-O {½-½ (52) Lindgren,P (2424)-Bank,P (2283) Malmo 2016}) 9... c5 {[%emt 0:05:30]} 10. O-O {[%emt 0:04:30]} Nbc6 {[%emt 0:01:30]} 11. Nc3 {[%emt 0:40:30]} Bg4 {[%emt 0:04:30]} 12. Ng5 {[%emt 0:04:30]} g6 {[%emt 0:17:30]} 13. Qf4 {[%emt 0:01:30]} Qc8 {[%emt 0:08:30]} 14. Nb5 {[%emt 0:01:30]} h6 {[%emt 0:01:30]} 15. e6 {[%emt 0:05:30]} hxg5 {[%emt 0:05:30]} 16. Qxg4 {[%emt 0:00:30]} Qxe6 {[%emt 0:00:30]} 17. Qxe6 {[%emt 0:00:30]} fxe6 {[%emt 0:00:30]} 18. dxc5 {[%emt 0:00:30]} bxc5 {[%emt 0:01:30]} 19. Nc7 {[%emt 0:00:30]} c4 {[%emt 0:04:30]} 20. Nxa8 {[%emt 0:00:30]} Rxa8 {[%emt 0:01:30]} 21. Be2 {[%emt 0:01:30]} Rb8 {[%emt 0:00:30]} 22. Bg4 {[%emt 0:02:37]} Kf7 {[%emt 0:01:30]} 23. Rfe1 {[%emt 0:00:33]} e5 {[%emt 0:00:30]} 24. Re2 {[%emt 0:01:22]} Kf6 {[%emt 0:00:30]} 25. Rd2 {[%emt 0:00:11]} e4 {[%emt 0:01:30]} 26. Be2 {[%emt 0:01:36]} Ne5 {[%emt 0:01:30]} 27. Rc1 {[%emt 0:01:29]} Nd3 {[%emt 0:02:30]} 28. Rcc2 {[%emt 0:02:09]} Nf5 {[%emt 0:00:30]} 29. Bf1 {[%emt 0:01:20]} Ke5 {[%emt 0:01:30]} 30. b3 $19 {[%emt 0:00:53]} Nd4 {[%emt 0:03:49]} 31. bxc4 {[%emt 0:00:54]} Nxc2 {[%emt 0:00:54]} 32. Rxc2 {[%emt 0:00:04]} Rc8 {[%emt 0:00:05]} 33. f3 {[%emt 0:01:38]} Rxc4 {[%emt 0:00:56]} 34. Rd2 {[%emt 0:02:24]} Rc1 {[%emt 0:00:10]} 35. g3 {[%emt 0:00:00]} Ne1 {[%emt 0:01:11]} 36. f4+ {[%emt 0:00:16]} gxf4 {[%emt 0:00:51]} 37. gxf4+ {[%emt 0:00:30]} Kxf4 {[%emt 0:00:00]} 38. Rxd5 {[%emt 0:00:35]} Nf3+ {[%emt 0:00:00]} 39. Kf2 {[%emt 0:00:18]} e3+ {[%emt 0:00:04]} 40. Ke2 {[%emt 0:00:00]} Re1+ {[%emt 0:00:30]} 0-1

[Event "World Junior U20 Girls 2018"]
[Site "Gebze"]
[Date "2018.09.14"]
[Round "10"]
[White "Sieber, Fiona"]
[Black "Bai, Xue"]
[Result "0-1"]
[ECO "C92"]
[WhiteElo "2277"]
[BlackElo "2073"]
[Annotator "NA"]
[PlyCount "129"]
[EventDate "2018.09.05"]
[EventType "swiss"]
[EventCountry "TUR"]
[SourceTitle "playchess.com"]
[Source "ChessBase"]
[SourceQuality "1"]
[TimeControl "40/5400+30:1800+30"]

1. e4 {[%emt 0:00:30]} e5 {[%emt 0:00:30]} 2. Nf3 {[%emt 0:00:30]} Nc6 {[%emt 0:00:30]} 3. Bb5 {[%emt 0:00:30]} a6 {[%emt 0:00:30]} 4. Ba4 {[%emt 0:00:00]} Nf6 {[%emt 0:00:00]} 5. O-O {[%emt 0:00:00]} Be7 {[%emt 0:00:00]} 6. Re1 {[%emt 0:00:00]} b5 {[%emt 0:00:00]} 7. Bb3 {[%emt 0:00:00]} d6 {[%emt 0:00:00]} 8. c3 {[%emt 0:00:00]} O-O {[%emt 0:00:00]} 9. h3 {[%emt 0:00:00]} Bb7 {[%emt 0:00:00] LiveBook: 4793 Games} 10. d4 {[%emt 0:00:00]} Re8 {[%emt 0:00:00]} 11. Nbd2 {[%emt 0:00:00]} exd4 {[%emt 0:00:00]} 12. cxd4 {[%emt 0:00:30]} Nd7 {[%emt 0:00:00]} 13. Nf1 {[%emt 0:01:30]} Na5 {[%emt 0:00:00]} 14. Bc2 {[%emt 0:00:30]} Bf6 {[%emt 0:00:00]} 15. Rb1 {[%emt 0:01:30]} c5 {[%emt 0:04:00]} 16. d5 {[%emt 0:00:30]} Nc4 {[%emt 0:00:00]} 17. N3h2 {[%emt 0:02:30]} Bd4 {[%emt 0:10:00]} (17... Nce5 $11 {keeps the balance.}) 18. b3 {[%emt 0:06:30]} Ncb6 {[%emt 0:00:30]} 19. Ne3 {[%emt 0:04:30]} g6 {[%emt 0:00:30]} 20. Neg4 {[%emt 0:15:30]} Ne5 {[%emt 0:02:30]} 21. Nh6+ {[%emt 0:03:30]} Kg7 {[%emt 0:00:30]} 22. Kh1 {[%emt 0:08:30]} f5 {[%emt 0:13:30]} 23. f3 $1 {[%emt 0:23:30]} Qh4 {[%emt 0:04:30]} 24. Qd2 {[%emt 0:07:30]} Nxd5 {[%emt 0:04:30]} 25. exd5 {[%emt 0:08:51]} Ng4 {[%emt 0:04:30]} 26. Rf1 {[%emt 0:11:40]} Nxh6 {[%emt 0:08:30]} 27. Bb2 {[%emt 0:00:30]} Bxb2 {[%emt 0:00:30]} 28. Rxb2 {[%emt 0:00:00]} Re5 {[%emt 0:00:30]} 29. Qa5 {[%emt 0:01:58]} (29. f4 $142 Rxd5 30. Qe1) 29... Qd8 {[%emt 0:01:30]} 30. Qc3 {[%emt 0:00:46]} Qf6 {[%emt 0:00:30]} 31. Rbb1 {[%emt 0:01:12]} Rxd5 {[%emt 0:00:30]} 32. Qxf6+ {[%emt 0:00:30]} Kxf6 {[%emt 0:00:30]} 33. Be4 {[%emt 0:00:00]} fxe4 {[%emt 0:00:30]} 34. fxe4+ {[%emt 0:00:00]} Rf5 {[%emt 0:00:30]} 35. exf5 {[%emt 0:00:00]} gxf5 {[%emt 0:00:30]} 36. Rf2 {[%emt 0:02:12]} (36. Rbe1 $1 $11 {keeps the balance.}) 36... Be4 {[%emt 0:01:30]} 37. Rc1 {[%emt 0:00:58]} Rc8 {[%emt 0:02:30]} 38. Nf3 {[%emt 0:00:48]} d5 {[%emt 0:03:30]} 39. Kg1 $17 {[%emt 0:00:15]} Nf7 {[%emt 0:02:30]} 40. Kf1 {[%emt 0:01:32]} Ne5 {[%emt 0:00:00]} 41. Rd1 {[%emt 0:09:18]} c4 {[%emt 0:03:00]} 42. bxc4 {[%emt 0:03:41]} bxc4 {[%emt 0:00:30]} 43. Nd4 {[%emt 0:01:54]} Nd3 {[%emt 0:00:30]} 44. Re2 {[%emt 0:00:14]} Ke5 {[%emt 0:00:30]} 45. Nf3+ {[%emt 0:01:23]} Kf4 {[%emt 0:00:00]} 46. Nd4 {[%emt 0:03:49]} Ke5 {[%emt 0:06:00]} 47. Nf3+ {[%emt 0:00:30]} Kd6 {[%emt 0:00:00]} 48. Nd4 {[%emt 0:03:04]} Rg8 {[%emt 0:01:00]} 49. Red2 {[%emt 0:03:22]} Nf4 {[%emt 0:02:30]} 50. g4 {[%emt 0:05:09]} fxg4 {[%emt 0:00:30]} 51. hxg4 {[%emt 0:00:30]} Rxg4 {[%emt 0:00:30]} 52. Rh2 {[%emt 0:00:30]} Kc5 {[%emt 0:00:00]} 53. Ne2 {[%emt 0:01:58]} Nxe2 {[%emt 0:03:00]} 54. Kxe2 {[%emt 0:00:12]} c3 {[%emt 0:00:30]} 55. Ke3 {[%emt 0:00:48]} Bg6 {[%emt 0:03:30]} 56. Rc1 {[%emt 0:00:54]} Re4+ {[%emt 0:00:30]} 57. Kf3 {[%emt 0:00:09]} Rc4 {[%emt 0:00:30]} 58. Rf2 {[%emt 0:01:06]} d4 {[%emt 0:00:30]} 59. Rg2 {[%emt 0:01:13]} d3 {[%emt 0:00:30]} 60. Rg5+ {[%emt 0:00:00]} Kc6 {[%emt 0:00:00]} 61. Ke3 {[%emt 0:01:04]} d2 {[%emt 0:00:00]} 62. Rf1 {[%emt 0:00:00]} Re4+ {[%emt 0:00:30]} 63. Kd3 {[%emt 0:00:00]} Re1+ {[%emt 0:00:30]} 64. Rxg6+ {[%emt 0:00:10]} hxg6 {[%emt 0:00:00]} 65. Kd4 {[%emt 0:00:40]} 0-1

[Event "World Junior U20 Girls 2018"]
[Site "Gebze"]
[Date "2018.09.14"]
[Round "10"]
[White "Diakonova, Ekaterina"]
[Black "Nomin-Erdene, Davaademberel"]
[Result "0-1"]
[ECO "C11"]
[WhiteElo "2243"]
[BlackElo "2377"]
[Annotator "NA"]
[PlyCount "88"]
[EventDate "2018.09.05"]
[EventType "swiss"]
[EventCountry "TUR"]
[SourceTitle "playchess.com"]
[Source "ChessBase"]
[SourceQuality "1"]
[TimeControl "40/5400+30:1800+30"]

1. e4 {[%emt 0:00:30]} e6 {[%emt 0:00:30]} 2. d4 {[%emt 0:00:30]} d5 {[%emt 0:00:00]} 3. Nc3 {[%emt 0:00:30]} Nf6 {[%emt 0:00:00]} 4. e5 {[%emt 0:00:00]} Nfd7 {[%emt 0:00:30]} 5. f4 {[%emt 0:00:00]} c5 {[%emt 0:00:00]} 6. Nf3 {[%emt 0:00:30]} Nc6 {[%emt 0:00:00]} 7. Be3 {[%emt 0:00:30]} Be7 {[%emt 0:00:00]} 8. Qd2 {[%emt 0:00:00]} b6 {[%emt 0:01:00] C11: French: Classical System: 4 e5 and 4 Bg5 dxe4} 9. Bb5 {[%emt 0:08:00]} Bb7 {[%emt 0:02:30] LiveBook: 14 Games} 10. O-O {[%emt 0:01:30]} a6 {[%emt 0:17:30]} 11. Bxc6 {[%emt 0:02:30]} Bxc6 {[%emt 0:00:30]} 12. Qf2 $146 {[%emt 0:01:30]} ({Predecessor:} 12. Nd1 Qc7 13. Nf2 O-O-O 14. a4 Kb8 15. b3 Bb7 16. Nd3 {1-0 (60) Aronian,L (2767)-Caruana,F (2822) chess.com INT 2018}) 12... O-O {[%emt 0:04:30]} 13. Qg3 {[%emt 0:02:30]} f5 {[%emt 0:12:30]} 14. Ng5 {[%emt 0:14:30]} Bxg5 {[%emt 0:00:30]} 15. fxg5 {[%emt 0:00:00]} Qe8 {[%emt 0:07:30]} 16. Rf3 {[%emt 0:11:00]} Rc8 {[%emt 0:08:30]} 17. Qh4 {[%emt 0:07:30]} f4 {[%emt 0:10:30]} 18. Bf2 {[%emt 0:06:30]} cxd4 $11 {[%emt 0:06:30]} 19. Bxd4 {[%emt 0:00:30]} Qg6 {[%emt 0:00:30]} 20. Rxf4 {[%emt 0:06:30]} Qxc2 {[%emt 0:03:30]} 21. Raf1 {[%emt 0:00:30]} Rxf4 {[%emt 0:10:04]} 22. Rxf4 {[%emt 0:00:30]} Bb5 {[%emt 0:02:39]} 23. Nxb5 {[%emt 0:02:30]} axb5 {[%emt 0:00:05]} 24. Qg4 {[%emt 0:01:30]} Qg6 {[%emt 0:01:23]} 25. h4 {[%emt 0:01:30]} Rf8 {[%emt 0:07:45]} 26. Rxf8+ {[%emt 0:02:30]} Kxf8 {[%emt 0:00:29]} 27. Qf3+ {[%emt 0:08:30]} Ke8 {[%emt 0:00:19]} 28. Kh2 {[%emt 0:02:30]} Qf7 {[%emt 0:00:39]} 29. Qg4 {[%emt 0:00:31]} g6 {[%emt 0:01:04]} 30. Kg3 {[%emt 0:01:01]} Nc5 {[%emt 0:01:31]} 31. Kh2 {[%emt 0:02:16]} Qf5 {[%emt 0:01:35]} 32. Qxf5 {[%emt 0:00:57]} exf5 {[%emt 0:00:30]} 33. b4 {[%emt 0:00:00]} Nd3 {[%emt 0:00:12]} 34. a3 {[%emt 0:02:22]} Kd7 {[%emt 0:00:01]} 35. Kg3 {[%emt 0:01:55]} Ke6 {[%emt 0:00:21]} 36. Kf3 {[%emt 0:02:37]} Nxe5+ {[%emt 0:00:41]} 37. Ke2 {[%emt 0:00:01]} Nc4 {[%emt 0:01:29]} 38. Kf3 {[%emt 0:01:03]} Nxa3 {[%emt 0:00:51]} 39. Bxb6 {[%emt 0:00:01]} Nc2 {[%emt 0:00:16]} 40. Bc5 {[%emt 0:00:00]} d4 {[%emt 0:00:00]} 41. Ke2 {[%emt 0:02:46]} Kd5 {[%emt 0:02:36]} 42. Kd2 {[%emt 0:00:30]} Ne3 {[%emt 0:00:30]} 43. g3 {[%emt 0:00:30]} Kc4 {[%emt 0:00:30]} 44. Bd6 {[%emt 0:00:30]} Nd5 {[%emt 0:00:00]} 0-1